[Event "Fall IM-E Norm Invitational 2022"]
[Site "Charlotte"]
[Date "2022.11.19"]
[Round "3"]
[White "Caglar, Sila"]
[Black "Martin Del Campo Cardenas, Roberto Abel"]
[Result "*"]
[ECO "B22"]
[WhiteElo "2268"]
[BlackElo "2243"]
[Annotator "TA"]
[PlyCount "40"]
[EventDate "2022.11.18"]
[EventType "tourn"]
[EventCountry "USA"]
[SourceTitle "playchess.com"]
[Source "ChessBase"]
[SourceQuality "1"]
[TimeControl "5400+30"]

{[%evp 9,10,16,45]} 1. e4 {[%emt 0:00:13]} c5 {[%emt 0:01:41]} 2. c3 {[%emt 0:00:08]} d5 {[%emt 0:00:34]} 3. exd5 {[%emt 0:00:05]} Qxd5 {[%emt 0:00:04]} 4. d4 {[%emt 0:00:03]} cxd4 {[%emt 0:00:40]} 5. cxd4 {[%emt 0:00:16]} Nc6 {[%emt 0:00:06] [#]} {Predecessor:} 6. Nf3 $146 {B22: Sicilian: 2 c3.} e5 7. Nc3 Bb4 8. Bd2 Bxc3 9. Bxc3 e4 10. Ne5 Nxe5 11. dxe5 Ne7 12. Qxd5 Nxd5 13. Bb5+ Bd7 14. O-O-O Bxb5 15. Rxd5 Bc4 16. Rd4 Bxa2 17. Rxe4 O-O 18. Rd1 Be6 19. g4 Rfc8 20. h3 g5 {0-1 (47) Hess,R (2591)-Dubov,D (2711) Chess.com INT 2022} *

[Event "Fall IM-E Norm Invitational 2022"]
[Site "Charlotte"]
[Date "2022.11.19"]
[Round "3"]
[White "Kunka, Harshid"]
[Black "Sheehan, Ethan"]
[Result "1-0"]
[ECO "B96"]
[WhiteElo "2236"]
[BlackElo "2157"]
[Annotator "TA"]
[PlyCount "69"]
[EventDate "2022.11.18"]
[EventType "tourn"]
[EventCountry "USA"]
[SourceTitle "playchess.com"]
[Source "ChessBase"]
[SourceQuality "1"]
[TimeControl "5400+30"]

{[%evp 16,69,19,4,18,5,8,-2,39,0,0,-17,0,0,22,0,16,0,0,0,-13,-13,2,0,29,30,31,29,27,27,39,33,30,31,85,71,234,229,472,477,824,824,813,797,789,769,1685,1675,1652,1578,1510,1425,29995,29996,29996,29997]} 1. e4 {[%emt 0:00:09]} c5 {[%emt 0:00:03]} 2. Nf3 {[%emt 0:00:11]} d6 {[%emt 0:00:01]} 3. d4 {[%emt 0:00:16]} cxd4 {[%emt 0:00:02]} 4. Nxd4 {[%emt 0:00:09]} Nf6 {[%emt 0:00:05]} 5. Nc3 {[%emt 0:00:17]} a6 {[%emt 0:00:06]} 6. Bg5 {[%emt 0:00:46]} e6 {[%emt 0:00:06]} 7. f4 {[%emt 0:00:22]} h6 {[%emt 0:00:02]} 8. Bh4 {[%emt 0:02:08]} Qb6 {[%emt 0:00:08]} 9. a3 {[%emt 0:01:21]} Be7 {[%emt 0:00:06][%cal Of6e4] B96: Sicilian Najdorf: 6 Bg5 e6 7 f4, lines other than 7...Qb6 and 7...Be7.} (9... Qxb2 $2 10. Na4 $18) 10. Bf2 {[%emt 0:00:57][%cal Od4e6]} Qc7 {[%emt 0:00:02]} (10... Qxb2 $2 11. Na4 $18) 11. Qf3 {[%emt 0:00:52]} b5 {[%emt 0:03:14] The position is equal.} 12. O-O-O {[%emt 0:06:28]} (12. g4 $5 {[%cal Rf1g2]}) 12... Bb7 {[%emt 0:00:16]} 13. Bd3 {[%emt 0:04:36]} Nbd7 {[%emt 0:00:37]} 14. Rhe1 {[%emt 0:04:31] [#]} O-O $146 {[%emt 0:06:45]} ({Predecessor:} 14... Rc8 15. Qh3 Nc5 16. Kb1 O-O 17. g4 d5 18. g5 hxg5 19. fxg5 Nh7 20. exd5 Nxg5 {½-½ (41) Shabalov,A (2570)-Ortiz Suarez,I (2579) Mar del Plata 2012}) 15. Qh3 {[%emt 0:06:30]} Nc5 {[%emt 0:03:29]} 16. g4 {[%emt 0:09:45]} d5 {[%emt 0:01:18]} 17. e5 {[%emt 0:02:05]} Nfe4 {[%emt 0:00:05]} 18. Bxe4 {[%emt 0:04:26]} dxe4 {[%emt 0:00:08]} (18... Nxe4 {is more complex.} 19. Bh4 Nxc3 20. Bxe7 Nxd1 21. Bxf8 Nf2) 19. Bh4 {[%emt 0:04:23]} f6 {[%emt 0:05:42]} (19... Bxh4 $5 20. Qxh4 Rad8 $11) 20. Kb1 {[%emt 0:06:08] And now exf6 would win.} fxe5 {[%emt 0:00:09]} 21. Bxe7 {[%emt 0:00:10]} Qxe7 {[%emt 0:00:08]} 22. fxe5 {[%emt 0:00:29][%cal Og4g5]} Rad8 {[%emt 0:03:48][%cal Ob5b4] Inhibits g5.} 23. Qe3 {[%emt 0:04:29] Prevents b4.} Rf7 {[%emt 0:11:20]} 24. Rg1 {[%emt 0:07:25][%cal Be1g1,Bg1g5,Bg5h5][%mdl 32]} Nd7 {[%emt 0:06:42]} (24... Qg5 $14 25. Qxg5 hxg5) 25. g5 $16 {[%emt 0:03:52] White is much more active.} hxg5 {[%emt 0:01:53] This costs Black the game.} (25... Nxe5 $16 {is a better defense.} 26. gxh6 Nf3) 26. Rxg5 $18 {[%emt 0:01:30] Threatens to win with Rh5.} Nb6 $2 {[%emt 0:00:35]} (26... Rdf8 27. Rh5 Rf1) 27. Rh5 {[%emt 0:03:27] [#] Intending Qh3 and mate.} Rf3 {[%emt 0:08:40] Against Qh3} (27... Rxd4 $142 28. Qxd4 Nd5 29. Nxe4 (29. Qxe4 $2 {perishes.} Nxc3+ 30. bxc3 Bxe4 $19) 29... Rf4) 28. Nxf3 {[%emt 0:00:35]} Rxd1+ {[%emt 0:00:13]} 29. Nxd1 {[%emt 0:00:38] aiming for Ng5.} Nc4 {[%emt 0:00:03]} 30. Qg5 {[%emt 0:11:38]} Qd7 {[%emt 0:00:11]} 31. Nc3 {[%emt 0:00:39][%cal Og5h4] [#] Threatening mate with Qh4!} exf3 {[%emt 0:00:07]} 32. Qh4 {[%emt 0:00:53] White wants to mate with Rh8+.} Kf7 {[%emt 0:04:59]} 33. Rh8 {[%emt 0:02:09] White threatens Qf4+ and mate.} Qc6 {[%emt 0:04:24]} 34. Qf4+ {[%emt 0:00:49]} Kg6 {[%emt 0:00:12]} 35. h4 {[%emt 0:00:25] Weighted Error Value: White=0.05 (flawless) /Black=0.68} 1-0

[Event "Fall IM-E Norm Invitational 2022"]
[Site "Charlotte"]
[Date "2022.11.19"]
[Round "3"]
[White "Kanli, Alperen"]
[Black "Putnam, Liam"]
[Result "0-1"]
[ECO "E20"]
[WhiteElo "2171"]
[BlackElo "2161"]
[Annotator "TA"]
[PlyCount "40"]
[EventDate "2022.11.18"]
[EventType "tourn"]
[EventCountry "USA"]
[SourceTitle "playchess.com"]
[Source "ChessBase"]
[SourceQuality "1"]
[TimeControl "5400+30"]

{[%evp 9,40,-2,-15,5,22,0,0,0,12,-121,-128,-130,-127,-117,-117,-230,-213,-573,-586,-594,-598,-589,-582,-743,-737,-674,-609,-602,-564,-548,-524,-856,-861]} 1. d4 {[%emt 0:00:04]} Nf6 {[%emt 0:00:28]} 2. c4 {[%emt 0:00:10]} e6 {[%emt 0:00:03]} 3. Nc3 {[%emt 0:00:07]} Bb4 {[%emt 0:00:03]} 4. f3 {[%emt 0:00:29]} c5 {[%emt 0:00:04]} 5. d5 {[%emt 0:00:19]} b5 {[%emt 0:00:07]} 6. e4 {[%emt 0:00:18] E20: Nimzo-Indian: 4 g3 and 4 f3.} d6 {[%emt 0:00:05][%cal Bd7d6,Bd6d5][%mdl 32] is the new trend.} 7. Nge2 {[%emt 0:01:57]} bxc4 {[%emt 0:00:22]} 8. Nf4 {[%emt 0:02:12] The position is equal.} g5 {[%emt 0:00:04] [#]} (8... e5 $5 9. Nfe2 $8 Ba6 $11) 9. dxe6 $146 {[%emt 0:24:21]} (9. Nfe2 $11 {remains equal.}) ({Predecessor:} 9. Nfe2 exd5 10. exd5 Qe7 11. Kf2 Nbd7 12. Ng3 Nb6 13. Nce4 h6 14. a3 Ba5 15. b4 cxb4 16. axb4 Bxb4 17. Bxc4 Nxe4+ 18. Nxe4 {1-0 (34) Mamedyarov,S (2765)-Ding,L (2799) Chess.com INT 2021}) 9... gxf4 $17 {[%emt 0:03:05]} 10. exf7+ {[%emt 0:00:39]} Kxf7 {[%emt 0:00:15] White must now prevent ...Be6.} 11. Bxf4 {[%emt 0:17:42]} d5 {[%emt 0:02:00]} 12. e5 {[%emt 0:01:33]} (12. exd5 $17 Nbd7 13. Qc2) 12... Nh5 {[%emt 0:10:22]} 13. Bd2 {[%emt 0:23:57] [#]} (13. Be3) 13... Qh4+ $19 {[%emt 0:06:03] Black is clearly winning.} 14. g3 {[%emt 0:00:18]} Nxg3 {[%emt 0:01:38]} 15. hxg3 {[%emt 0:00:07]} Qxh1 {[%emt 0:09:05]} 16. Nxd5 {[%emt 0:00:17]} Bh3 {[%emt 0:00:43][%csl Gh3][%cal Rh1f1] [#]} 17. e6+ {[%emt 0:02:47]} Bxe6 {[%emt 0:00:56]} 18. Bxb4 {[%emt 0:03:25]} cxb4 {[%emt 0:00:48]} 19. Qd4 {[%emt 0:06:53] White wants to mate with Qf6+.} Qxf3 {[%emt 0:01:00]} 20. Be2 {[%emt 0:06:09]} Nc6 {[%emt 0:07:29] Weighted Error Value: White=1.09/Black=0.16 (very precise)} 0-1

[Event "Fall IM-E Norm Invitational 2022"]
[Site "Charlotte"]
[Date "2022.11.20"]
[Round "5"]
[White "Dante Beukes"]
[Black "Sriram Krishnakumar"]
[Result "1-0"]
[ECO "C47"]
[WhiteElo "2299"]
[BlackElo "2248"]
[Annotator "TA"]
[PlyCount "177"]
[EventDate "2022.11.18"]
[EventType "tourn"]
[EventCountry "USA"]
[SourceTitle "playchess.com"]
[Source "ChessBase"]
[SourceQuality "1"]
[TimeControl "5400+30"]

{[%evp 16,177,7,0,12,0,26,27,69,77,219,215,215,214,206,211,206,195,234,230,220,198,199,145,708,699,706,710,702,696,623,224,430,399,383,382,400,380,346,281,284,269,297,296,425,323,320,210,201,217,208,199,207,193,205,158,160,161,160,159,235,212,197,171,174,151,304,303,267,277,260,245,324,327,367,258,353,347,352,356,398,323,296,270,333,142,142,75,76,0,243,239,244,144,441,472,426,377,598,559,483,418,342,383,1170,1151,1066,1060,937,833,825,807,780,671,767,735,547,357,671,487,6256,5764,2687,0,4934,2095,29973,29972,29971,29972,29973,29975,29977,29979,29979,29980,29980,29981,29982,29979,29984,29985,29986,29987,29986,29987,29988,29989,29990,29991,29991,29987,29987,29988,29988,29989,29990,29991,29991,29991,29991,29992,29992,29993]} 1. e4 {[%emt 0:05:34]} e5 {[%emt 0:00:06]} 2. Nf3 {[%emt 0:00:04]} Nc6 {[%emt 0:00:06]} 3. Nc3 {[%emt 0:00:03]} Nf6 {[%emt 0:00:05]} 4. d4 {[%emt 0:00:03]} exd4 {[%emt 0:00:05]} 5. Nxd4 {[%emt 0:00:04]} Bb4 {[%emt 0:00:06]} 6. Nxc6 {[%emt 0:00:04]} bxc6 {[%emt 0:00:03]} 7. Bd3 {[%emt 0:00:05]} d5 {[%emt 0:00:09]} 8. Bd2 {[%emt 0:00:05]} O-O {[%emt 0:05:42]} 9. O-O {[%emt 0:00:04]} Re8 {[%emt 0:11:47] C47: Scotch Four Knights and Four Knights with 4 g3.} 10. Re1 {[%emt 0:02:20][%cal Oc3d5]} Bc5 {[%emt 0:05:59]} 11. h3 {[%emt 0:03:05] [#] Prevents Ng4.} Qd6 $146 {[%emt 0:16:24][%cal Oc8h3] White has an edge.} ({Predecessor:} 11... d4 12. Na4 Be7 13. b3 Bd7 14. Nb2 g6 15. Nc4 Nh5 16. Qf3 Bg5 17. Bxg5 Qxg5 18. e5 Nf4 19. Kh2 Nxd3 20. Qxd3 c5 21. Rac1 Bb5 {½-½ (21) Prazak,L (1930)-Tichy,M (2065) Nachod 2002}) 12. Qf3 {[%emt 0:03:40]} d4 {[%emt 0:17:30]} (12... Bb7 $16) 13. e5 $1 $18 {[%emt 0:08:57]} Rxe5 {[%emt 0:03:19]} 14. Bf4 {[%emt 0:02:49]} Rxe1+ {[%emt 0:03:13]} 15. Rxe1 {[%emt 0:00:28]} Qf8 {[%emt 0:01:09]} 16. Ne4 {[%emt 0:01:38]} (16. Qxc6 $2 Bd7 17. Qxc7 Rc8 $19) 16... Nxe4 {[%emt 0:10:24]} 17. Qxe4 {[%emt 0:00:31][%csl Gd3][%cal Re4h7]} (17. Bxe4 Rb8 $14) 17... g6 {[%emt 0:00:28]} 18. Qxc6 {[%emt 0:06:00] And now Re8 would win.} ({Much less strong is} 18. Bxc7 $6 Bd7 $16) 18... Be6 {[%emt 0:00:05] [#]} 19. Bxc7 {[%emt 0:06:49]} (19. Bh6 $1 $18 {[%cal Rh6f8][%mdl 512]} Qxh6 20. Qxa8+ Qf8 21. Qf3) 19... Bb4 {[%emt 0:04:00][%mdl 8192]} (19... Rc8 $16) 20. Rxe6 {[%emt 0:04:58]} fxe6 {[%emt 0:00:19]} 21. Qxe6+ {[%emt 0:00:05]} Kg7 {[%emt 0:04:11]} 22. Be5+ {[%emt 0:03:42]} Kh6 {[%emt 0:00:07]} 23. Bxd4 $2 {[%emt 0:03:28] This bishop pair is nice.} (23. Qg4 {[%cal Rg4h4]} Be7 24. Qxd4) 23... Re8 $2 {[%emt 0:01:12]} (23... Qe7 {might work better.} 24. Qc4 Bd6) 24. Be3+ {[%emt 0:00:48]} Kg7 {[%emt 0:00:06]} 25. Qd7+ {[%emt 0:00:04]} Be7 {[%emt 0:01:57]} 26. Qxa7 {[%emt 0:03:30]} Ra8 {[%emt 0:00:39]} 27. Qd4+ {[%emt 0:01:16]} Bf6 {[%emt 0:00:50]} 28. Qd5 {[%emt 0:02:41]} ({Don't take} 28. Qf4 Qf7 29. Bc4 Qe7 $18) 28... Rd8 {[%emt 0:01:30]} 29. Qb7+ {[%emt 0:00:39]} Kh8 {[%emt 0:00:09]} (29... Qf7 $142 30. Qxf7+ Kxf7) 30. b3 {[%emt 0:00:57]} Qa3 {[%emt 0:02:22]} 31. Qa6 {[%emt 0:02:00]} Qxa6 {[%emt 0:01:19]} 32. Bxa6 {[%emt 0:00:13][%mdl 4096] Endgame KRB-KB} Ra8 {[%emt 0:00:03]} 33. Bd3 {[%emt 0:02:37]} Rxa2 {[%emt 0:00:05]} 34. g3 {[%emt 0:00:42]} Bc3 {[%emt 0:00:42]} 35. Kg2 {[%emt 0:00:09][%cal Ob3b4]} Kg7 {[%emt 0:00:04]} 36. Kf3 {[%emt 0:00:05]} Kf6 {[%emt 0:00:03]} 37. Ke4 {[%emt 0:00:15]} Ke6 {[%emt 0:01:09]} (37... Ra8 $16 {keeps fighting.} 38. Bc4 Rd8) 38. Bd4 {[%emt 0:01:17]} Be1 {[%emt 0:00:05]} 39. b4 {[%emt 0:00:45][%cal Bb3b4,Bb4b5][%mdl 32] aiming for Bc4+.} Kd6 {[%emt 0:01:38]} 40. b5 {[%emt 0:01:04] Black must now prevent g4.} Bb4 $2 {[%emt 0:00:31]} (40... Ra8 $16 41. c4 Re8+ 42. Kf3 Rf8+ 43. Kg2 Bb4) 41. Be5+ {[%emt 0:14:06]} Kc5 {[%emt 0:00:48]} 42. Bf6 {[%emt 0:02:37] Hoping for Be7+.} Kd6 {[%emt 0:01:03] Against Be7+} 43. f4 {[%emt 0:04:28]} Ra8 {[%emt 0:01:05]} 44. Be5+ {[%emt 0:00:14]} Kc5 {[%emt 0:00:31]} 45. Bd4+ {[%emt 0:00:35]} Kd6 {[%emt 0:00:12]} 46. c3 {[%emt 0:00:59]} Ba3 {[%emt 0:02:04]} 47. g4 {[%emt 0:00:35]} Bb2 {[%emt 0:00:45]} 48. Bc4 {[%emt 0:01:04]} Re8+ {[%emt 0:01:06]} 49. Kd3 {[%emt 0:00:10]} Rf8 {[%emt 0:00:47]} 50. Be3 {[%emt 0:01:02]} (50. f5 $18) 50... Ba3 $16 {[%emt 0:00:35]} 51. h4 {[%emt 0:04:32]} (51. Kc2 $142) 51... Bc5 {[%emt 0:01:20]} 52. Kd2 {[%emt 0:02:08]} (52. Bc1 $16) 52... Ba3 $2 {[%emt 0:02:51] [#] Black is now going downhill.} (52... Bxe3+ $11 {and Black stays safe.} 53. Kxe3 Rc8) 53. Bd3 $1 $18 {[%emt 0:00:18]} Re8 {[%emt 0:00:33][%cal Oa3c1] [#]} 54. Bd4 {[%emt 0:01:00]} ({Better is} 54. f5 $1 $18 {[%cal Rf5g6]}) 54... Kc7 $2 {[%emt 0:00:57][%mdl 8192]} (54... Bc5 $16) 55. f5 {[%emt 0:00:27]} gxf5 {[%emt 0:00:27]} 56. Bxf5 {[%emt 0:00:06]} h6 {[%emt 0:00:48]} (56... Rd8 $142 57. b6+ Kb7 58. Be4+ Ka6) 57. Kd3 {[%emt 0:00:25]} Kd6 {[%emt 0:01:00]} 58. Kc4 {[%emt 0:00:08] Prevents Bc5.} Bc1 {[%emt 0:00:45]} 59. Bc5+ {[%emt 0:01:57]} Ke5 $2 {[%emt 0:00:28]} (59... Kc7 60. Kd3 Rb8) 60. h5 {[%emt 0:00:16]} Bd2 {[%emt 0:00:31]} 61. b6 {[%emt 0:00:13] Threatens to win with b7.} Rb8 {[%emt 0:00:04]} 62. Bd4+ {[%emt 0:00:14]} Kd6 {[%emt 0:00:10]} 63. Kb5 {[%emt 0:00:05]} Kd5 {[%emt 0:01:08]} 64. Ka6 {[%emt 0:00:21]} Bf4 {[%emt 0:00:21]} 65. b7 {[%emt 0:00:31] Inhibits Ra8+.} Re8 {[%emt 0:00:10]} 66. Bg6 {[%emt 0:02:10]} Re7 $2 {[%emt 0:01:27]} (66... Re2 67. Bd3 Rd2) 67. Kb6 {[%emt 0:01:52]} Re1 {[%emt 0:00:36]} (67... Bb8 $142 68. Bd3 Re6+ 69. Kb5 Re7 70. Bc4+ Ke4) 68. Bf7+ {[%emt 0:00:40]} Ke4 {[%emt 0:00:03]} 69. Bg6+ {[%emt 0:01:12]} (69. g5 $142 hxg5 70. h6) 69... Kd5 {[%emt 0:00:13]} 70. g5 {[%emt 0:04:25]} hxg5 {[%emt 0:00:59]} 71. Bf7+ {[%emt 0:00:05] White mates.} Ke4 {[%emt 0:00:04]} 72. h6 {[%emt 0:00:06]} Rh1 {[%emt 0:01:38]} 73. Bg6+ {[%emt 0:00:55]} Kd5 {[%emt 0:00:13]} 74. h7 {[%emt 0:00:14]} g4 {[%emt 0:01:17]} 75. h8=Q {[%emt 0:01:33]} Rxh8 {[%emt 0:00:06]} 76. Bxh8 {[%emt 0:00:05]} g3 {[%emt 0:00:19]} 77. Bd4 {[%emt 0:00:08]} Bb8 {[%emt 0:00:11]} 78. Bd3 {[%emt 0:00:27]} g2 {[%emt 0:00:09]} 79. Bg1 {[%emt 0:00:15]} Ke5 {[%emt 0:01:39]} 80. c4 {[%emt 0:00:08][%cal Bc3c4,Bc4c5,Bc5c6][%mdl 32]} Kf4 {[%emt 0:00:17]} 81. c5 {[%emt 0:00:08]} Kf3 {[%emt 0:00:04]} 82. c6 {[%emt 0:00:09]} Bg3 {[%emt 0:00:06]} 83. Kb5 {[%emt 0:00:34]} Bc7 {[%emt 0:00:13]} 84. Kc5 {[%emt 0:00:22]} Bg3 {[%emt 0:00:30]} 85. Kd5 {[%emt 0:00:05]} Bf4 {[%emt 0:00:04]} 86. Be4+ {[%emt 0:00:07]} Kg3 {[%emt 0:00:05]} 87. Bc5 {[%emt 0:00:18]} Kh2 {[%emt 0:00:24] [#]} 88. Bxg2 $1 {[%emt 0:00:06]} Kxg2 {[%emt 0:00:04]} (88... Bg3 89. Bf3) 89. Bd6 {[%emt 0:00:05] Weighted Error Value: White=0.36/Black=0.50} 1-0

[Event "Fall IM-E Norm Invitational 2022"]
[Site "Charlotte"]
[Date "2022.11.20"]
[Round "5"]
[White "Harshid Kunka"]
[Black "Grayson Rorrer"]
[Result "1/2-1/2"]
[ECO "B94"]
[WhiteElo "2236"]
[BlackElo "2230"]
[Annotator "TA"]
[PlyCount "50"]
[EventDate "2022.11.18"]
[EventType "tourn"]
[EventCountry "USA"]
[SourceTitle "playchess.com"]
[Source "ChessBase"]
[SourceQuality "1"]
[TimeControl "5400+30"]

{[%evp 13,50,0,27,0,17,0,12,4,16,22,29,31,27,24,21,22,24,10,8,18,34,11,17,14,20,0,99,91,192,-29,-17,-41,0,0,0,0,0,0,0]} 1. e4 {[%emt 0:00:09]} c5 {[%emt 0:00:15]} 2. Nf3 {[%emt 0:00:19]} d6 {[%emt 0:00:12]} 3. d4 {[%emt 0:00:20]} cxd4 {[%emt 0:00:12]} 4. Nxd4 {[%emt 0:00:14]} Nf6 {[%emt 0:00:11]} 5. Nc3 {[%emt 0:00:12]} a6 {[%emt 0:00:09]} 6. Bg5 {[%emt 0:00:15]} Nbd7 {[%emt 0:00:10]} 7. f4 {[%emt 0:00:20] 7.Qe2 is the recent fashion.} Qc7 {[%emt 0:00:22]} 8. Qf3 {[%emt 0:00:42] B94: Sicilian Najdorf: 6 Bg5 Nbd7.} b5 {[%emt 0:00:23]} 9. O-O-O {[%emt 0:00:48]} Bb7 {[%emt 0:00:17]} 10. Nd5 {[%emt 0:02:36]} Nxd5 {[%emt 0:00:27]} 11. exd5 {[%emt 0:00:07]} Rc8 {[%emt 0:02:52]} 12. Bd3 $1 {[%emt 0:01:26]} h6 {[%emt 0:06:03]} 13. Bh4 {[%emt 0:00:59]} g5 $1 {[%emt 0:00:25] [#]} 14. Bf2 $146 {[%emt 0:02:12][%mdl 2048] White fights for an advantage.} ({Don't play} 14. fxg5 hxg5 15. Bg3 (15. Bxg5 Ne5 $17) 15... Qc5) ({Predecessor:} 14. fxg5 hxg5 15. Bg3 Qc5 16. Nf5 Qxd5 17. Be4 Qxe4 18. Nxd6+ exd6 19. Rde1 Rxc2+ 20. Kd1 {0-1 (40) Wettengel,A (2096)-Tuncer,U (2328) Ditzingen 2013}) 14... gxf4 {[%emt 0:01:33]} 15. Bf5 {[%emt 0:01:38]} Rg8 {[%emt 0:00:14]} 16. Rhe1 {[%emt 0:05:57]} Rg5 $1 {[%emt 0:00:20][%cal Og5f5] ...Rxf5! is the strong threat.} 17. Re2 {[%emt 0:11:26] With the idea Bh4.} Ne5 $1 {[%emt 0:00:12]} 18. Qxf4 {[%emt 0:02:47] And now Bh4 would win.} Rxg2 {[%emt 0:00:06]} 19. Bxc8 {[%emt 0:03:16]} Qxc8 {[%emt 0:00:19]} (19... Bxc8 $11 20. Nc6 Rg5) 20. Nf5 $16 {[%emt 0:11:39]} Qc4 {[%emt 0:27:33] [#]} (20... Rg5 $16 21. Ne3 Ng6) 21. Qxc4 $2 {[%emt 0:04:41]} (21. Nxd6+ $1 $18 {[%mdl 512]} exd6 22. Rxe5+ dxe5 23. Qxe5+ Kd8 24. Bb6+ Kd7 25. Qf5+ Ke8 26. d6 Rxc2+ 27. Qxc2 Qxc2+ 28. Kxc2) 21... bxc4 {[%emt 0:00:19]} 22. h4 {[%emt 0:09:46]} Bc8 {[%emt 0:01:51][%mdl 1024] Black has compensation.} (22... h5 $5 {[%cal Rb7c8]} 23. Kb1 Bc8 $15) 23. Ne3 {[%emt 0:05:07] The position is equal.} Rh2 {[%emt 0:00:14]} 24. Nf1 {[%emt 0:08:04]} Rg2 {[%emt 0:02:15]} 25. Ne3 {[%emt 0:02:01]} Rh2 {[%emt 0:00:07] Weighted Error Value: White=0.17 (very precise) /Black=0.20 (precise)} 1/2-1/2

[Event "Fall IM-E Norm Invitational 2022"]
[Site "Charlotte"]
[Date "2022.11.20"]
[Round "5"]
[White "Liam Putnam"]
[Black "Ethan Sheehan"]
[Result "1/2-1/2"]
[ECO "E06"]
[WhiteElo "2161"]
[BlackElo "2157"]
[Annotator "TA"]
[PlyCount "72"]
[EventDate "2022.11.18"]
[EventType "tourn"]
[EventCountry "USA"]
[SourceTitle "playchess.com"]
[Source "ChessBase"]
[SourceQuality "1"]
[TimeControl "5400+30"]

{[%evp 20,72,9,2,6,0,0,0,-7,0,0,0,0,-2,0,0,0,0,0,8,12,0,0,0,0,0,0,0,0,0,16,11,43,45,52,53,53,53,56,56,56,56,56,25,40,0,0,0,26,0,0,0,33,0,6]} 1. d4 {[%emt 0:05:47]} d5 {[%emt 0:00:04]} 2. c4 {[%emt 0:00:11]} e6 {[%emt 0:00:01]} 3. Nf3 {[%emt 0:00:06]} Nf6 {[%emt 0:00:07]} 4. g3 {[%emt 0:00:21]} Be7 {[%emt 0:00:05]} 5. Bg2 {[%emt 0:00:09]} O-O {[%emt 0:00:03]} 6. O-O {[%emt 0:00:05]} dxc4 {[%emt 0:00:05]} 7. Qc2 {[%emt 0:00:05]} a6 {[%emt 0:00:04]} 8. a4 {[%emt 0:00:03]} Bd7 {[%emt 0:00:12]} 9. Qxc4 {[%emt 0:00:07]} Bc6 {[%emt 0:00:05]} 10. Bf4 {[%emt 0:05:45]} Nbd7 {[%emt 0:03:11]} 11. Nc3 {[%emt 0:05:22]} Bd6 $1 {[%emt 0:10:52][%mdl 4] is more profitable than 11...Nb6 at the moment. E05: Open Catalan: 5 Nf3 Be7.} 12. a5 {[%emt 0:20:59]} Bxf4 {[%emt 0:04:45]} 13. gxf4 {[%emt 0:00:02]} Nd5 {[%emt 0:00:10]} 14. e3 {[%emt 0:06:42]} Nxc3 {[%emt 0:01:45]} 15. Qxc3 {[%emt 0:00:04]} Rc8 {[%emt 0:04:05] [#]} 16. Rac1 $146 {[%emt 0:04:34]} ({Predecessor:} 16. h3 Bd5 17. Ne5 c5 18. Rfd1 Bxg2 19. Kxg2 cxd4 20. Qxd4 Nxe5 21. Qxe5 Qe7 {½-½ (21) Susla,V (2313)-Morcin,T (2223) LSS email 2018}) 16... Qe7 {[%emt 0:08:12]} 17. Rfd1 {[%emt 0:03:09]} Rfd8 {[%emt 0:07:57]} 18. Qd3 {[%emt 0:14:23]} Ba4 {[%emt 0:03:53]} 19. Ng5 {[%emt 0:05:15]} Nf6 {[%emt 0:00:45]} 20. b3 {[%emt 0:01:28]} ({Reject} 20. Bxb7 Rb8 21. Bxa6 Bxd1 22. Rxd1 Rxb2 $17) 20... Bb5 {[%emt 0:00:06]} 21. Qc2 {[%emt 0:02:06]} c6 {[%emt 0:02:51]} 22. Kh1 {[%emt 0:02:36]} h6 {[%emt 0:02:31]} 23. Ne4 {[%emt 0:01:16]} Nxe4 {[%emt 0:00:18]} 24. Bxe4 {[%emt 0:00:07]} f5 {[%emt 0:00:09]} 25. Bf3 {[%emt 0:01:49]} Kh8 {[%emt 0:02:43]} 26. Rg1 {[%emt 0:02:22]} Qf6 {[%emt 0:06:46]} 27. Rg3 {[%emt 0:01:54]} Rg8 {[%emt 0:03:06]} 28. Rcg1 {[%emt 0:01:14]} g5 {[%emt 0:00:47]} 29. fxg5 {[%emt 0:00:22]} Rxg5 {[%emt 0:00:09]} 30. Qc5 {[%emt 0:02:47]} Rd8 {[%emt 0:03:14]} 31. b4 {[%emt 0:03:11]} Rd7 {[%emt 0:03:57]} 32. R1g2 {[%emt 0:04:59]} Bf1 {[%emt 0:07:06]} 33. Rg1 {[%emt 0:00:23]} Bb5 {[%emt 0:00:02]} 34. R1g2 {[%emt 0:01:09]} Bf1 {[%emt 0:00:09]} 35. Rg1 {[%emt 0:00:09]} Bb5 {[%emt 0:00:02]} 36. R1g2 {[%emt 0:01:23]} Bf1 {[%emt 0:00:12] Weighted Error Value: White=0.07 (flawless) /Black=0.03 (flawless)} 1/2-1/2